[Event "Betsys MČR v online bleskovém šachu 2021"]
[Site "Chess.com"]
[Date "2021.04.17"]
[Round "8"]
[White "hoacin"]
[Black "JakubPulpan"]
[Result "1/2-1/2"]
[WhiteElo "2572"]
[BlackElo "2712"]
[TimeControl "180+1"]
[EndTime "10:23:08 PDT"]
[Termination "Remíza opakováním pozice"]

1. e4 {[%clk 0:03:00.9]} 1... e5 {[%clk 0:03:00.2]} 2. Nf3 {[%clk 0:03:00.8]}
2... Nc6 {[%clk 0:03:00]} 3. Bc4 {[%clk 0:03:00.1]} 3... Bc5 {[%clk 0:02:59.9]}
4. c3 {[%clk 0:02:59.5]} 4... Nf6 {[%clk 0:03:00]} 5. d3 {[%clk 0:02:58.5]} 5...
a6 {[%clk 0:02:59.9]} 6. Bb3 {[%clk 0:02:57.9]} 6... Ba7 {[%clk 0:02:59.7]} 7.
O-O {[%clk 0:02:56.9]} 7... h6 {[%clk 0:03:00.2]} 8. Nbd2 {[%clk 0:02:54.8]}
8... d6 {[%clk 0:02:59.6]} 9. Nc4 {[%clk 0:02:50.9]} 9... Be6 {[%clk 0:02:57.6]}
10. Ne3 {[%clk 0:02:45.7]} 10... Qd7 {[%clk 0:02:55.3]} 11. Nh4 {[%clk
0:02:33.4]} 11... Ne7 {[%clk 0:02:37.9]} 12. Qf3 {[%clk 0:02:19.9]} 12... O-O-O
{[%clk 0:02:23.8]} 13. Nhf5 {[%clk 0:02:15.2]} 13... Nxf5 {[%clk 0:02:14]} 14.
Nxf5 {[%clk 0:02:14.4]} 14... Bxf5 {[%clk 0:02:12.4]} 15. exf5 {[%clk
0:02:14.4]} 15... d5 {[%clk 0:02:12.6]} 16. Be3 {[%clk 0:02:14]} 16... Bxe3
{[%clk 0:02:03.5]} 17. fxe3 {[%clk 0:02:10.2]} 17... Kb8 {[%clk 0:01:58.3]} 18.
Qg3 {[%clk 0:02:06]} 18... Qe7 {[%clk 0:01:57.3]} 19. Qh4 {[%clk 0:01:56]} 19...
Rhg8 {[%clk 0:01:43]} 20. Rad1 {[%clk 0:01:43.5]} 20... c6 {[%clk 0:01:35.4]}
21. Rd2 {[%clk 0:01:41.1]} 21... e4 {[%clk 0:01:32.3]} 22. d4 {[%clk 0:01:40.3]}
22... Qc7 {[%clk 0:01:10.6]} 23. Bd1 {[%clk 0:01:38.8]} 23... Nd7 {[%clk
0:01:05.7]} 24. Bh5 {[%clk 0:01:36]} 24... Nf6 {[%clk 0:01:05.2]} 25. Bd1 {[%clk
0:01:34.1]} 25... Ne8 {[%clk 0:01:03.7]} 26. Rdf2 {[%clk 0:01:30.6]} 26... f6
{[%clk 0:00:59.7]} 27. c4 {[%clk 0:01:21.7]} 27... dxc4 {[%clk 0:00:50.7]} 28.
Qxe4 {[%clk 0:01:20.8]} 28... Nd6 {[%clk 0:00:51.2]} 29. Qf4 {[%clk 0:01:13.4]}
29... Rge8 {[%clk 0:00:52.1]} 30. Bc2 {[%clk 0:01:03]} 30... Qb6 {[%clk
0:00:43.5]} 31. Qg3 {[%clk 0:00:52.9]} 31... Re7 {[%clk 0:00:40.9]} 32. b3
{[%clk 0:00:48.3]} 32... c3 {[%clk 0:00:40.7]} 33. Rd1 {[%clk 0:00:37.6]} 33...
Ka7 {[%clk 0:00:39.5]} 34. e4 {[%clk 0:00:32.2]} 34... Nxe4 {[%clk 0:00:37.4]}
35. Bxe4 {[%clk 0:00:32]} 35... Rxe4 {[%clk 0:00:38.3]} 36. Qxc3 {[%clk
0:00:32.2]} 36... Rdxd4 {[%clk 0:00:36.4]} 37. Rxd4 {[%clk 0:00:31.1]} 37...
Rxd4 {[%clk 0:00:34.4]} 38. Kf1 {[%clk 0:00:24.7]} 38... Rd1+ {[%clk 0:00:32.7]}
39. Ke2 {[%clk 0:00:24.7]} 39... Rd5 {[%clk 0:00:30.9]} 40. Rf3 {[%clk
0:00:21.9]} 40... Re5+ {[%clk 0:00:30.2]} 41. Kf1 {[%clk 0:00:20.7]} 41... Qb5+
{[%clk 0:00:27.5]} 42. Kf2 {[%clk 0:00:20.5]} 42... Qd5 {[%clk 0:00:18.1]} 43.
g4 {[%clk 0:00:16.4]} 43... Qe4 {[%clk 0:00:17.2]} 44. Kg3 {[%clk 0:00:15.6]}
44... Qe1+ {[%clk 0:00:12]} 45. Qxe1 {[%clk 0:00:15.1]} 45... Rxe1 {[%clk
0:00:12.9]} 46. Rd3 {[%clk 0:00:15.5]} 46... Re7 {[%clk 0:00:13.3]} 47. Rd8
{[%clk 0:00:15]} 47... a5 {[%clk 0:00:07.3]} 48. h4 {[%clk 0:00:14.8]} 48... b5
{[%clk 0:00:06.9]} 49. Kf4 {[%clk 0:00:13.9]} 49... c5 {[%clk 0:00:05.4]} 50.
Rc8 {[%clk 0:00:13.7]} 50... Kb6 {[%clk 0:00:04.8]} 51. Rb8+ {[%clk 0:00:13.6]}
51... Rb7 {[%clk 0:00:05]} 52. Rc8 {[%clk 0:00:13.2]} 52... Rc7 {[%clk
0:00:05.1]} 53. Rb8+ {[%clk 0:00:13.1]} 53... Kc6 {[%clk 0:00:04.8]} 54. Ke3
{[%clk 0:00:12.8]} 54... c4 {[%clk 0:00:03.1]} 55. bxc4 {[%clk 0:00:12.5]} 55...
bxc4 {[%clk 0:00:04]} 56. Kd4 {[%clk 0:00:12.9]} 56... Kd6 {[%clk 0:00:04.2]}
57. Rb6+ {[%clk 0:00:12.2]} 57... Ke7 {[%clk 0:00:04.2]} 58. Kc3 {[%clk
0:00:12.1]} 58... h5 {[%clk 0:00:03.1]} 59. gxh5 {[%clk 0:00:11.4]} 59... Rc5
{[%clk 0:00:03.3]} 60. Rb7+ {[%clk 0:00:10.5]} 60... Kf8 {[%clk 0:00:03.7]} 61.
Rb8+ {[%clk 0:00:10.3]} 61... Kf7 {[%clk 0:00:04.1]} 62. Rb7+ {[%clk 0:00:10.2]}
62... Kg8 {[%clk 0:00:04.7]} 63. a4 {[%clk 0:00:09.7]} 63... Rxf5 {[%clk
0:00:04.8]} 64. h6 {[%clk 0:00:10.1]} 64... gxh6 {[%clk 0:00:04.5]} 65. Rb5
{[%clk 0:00:07.9]} 65... Rf3+ {[%clk 0:00:04.8]} 66. Kxc4 {[%clk 0:00:07.9]}
66... Rf4+ {[%clk 0:00:05.3]} 67. Kb3 {[%clk 0:00:07.6]} 67... Rxh4 {[%clk
0:00:05.6]} 68. Rxa5 {[%clk 0:00:08]} 68... h5 {[%clk 0:00:05.5]} 69. Ra8+
{[%clk 0:00:07.6]} 69... Kg7 {[%clk 0:00:05.4]} 70. a5 {[%clk 0:00:07.7]} 70...
Rh1 {[%clk 0:00:06]} 71. Kb2 {[%clk 0:00:05.1]} 71... h4 {[%clk 0:00:05.4]} 72.
a6 {[%clk 0:00:04.9]} 72... Rh2+ {[%clk 0:00:05.9]} 73. Kb3 {[%clk 0:00:04.8]}
73... Rh3+ {[%clk 0:00:06.1]} 74. Kb2 {[%clk 0:00:04.9]} 74... Rh2+ {[%clk
0:00:05.9]} 75. Kb3 {[%clk 0:00:05.3]} 75... Rh3+ {[%clk 0:00:04.1]} 76. Kb2
{[%clk 0:00:05.6]} 76... Rh2+ {[%clk 0:00:04.2]} 1/2-1/2

[Event "Betsys MČR v online bleskovém šachu 2021"]
[Site "Chess.com"]
[Date "2021.04.17"]
[Round "9"]
[White "TarantAnk"]
[Black "Bancroft"]
[Result "0-1"]
[WhiteElo "1724"]
[BlackElo "1922"]
[TimeControl "180+1"]
[EndTime "10:24:55 PDT"]
[Termination "Uživatel Bancroft zvítězil po vzdání soupeře"]

1. e4 {[%clk 0:03:00.9]} 1... c5 {[%clk 0:02:59.5]} 2. Nf3 {[%clk 0:02:59.8]}
2... d6 {[%clk 0:02:59.2]} 3. d4 {[%clk 0:02:59.3]} 3... cxd4 {[%clk 0:03:00.1]}
4. Nxd4 {[%clk 0:02:59.9]} 4... Nf6 {[%clk 0:03:00.7]} 5. Nc3 {[%clk 0:02:59.7]}
5... g6 {[%clk 0:03:01.1]} 6. Bg5 {[%clk 0:02:58.4]} 6... Bg7 {[%clk 0:03:01]}
7. Qd2 {[%clk 0:02:58.8]} 7... h6 {[%clk 0:03:00.4]} 8. Be3 {[%clk 0:02:57.3]}
8... Nc6 {[%clk 0:02:57.1]} 9. O-O-O {[%clk 0:02:54.3]} 9... Ng4 {[%clk
0:02:55.5]} 10. Nxc6 {[%clk 0:02:47]} 10... bxc6 {[%clk 0:02:56.4]} 11. Bd4
{[%clk 0:02:45.2]} 11... e5 {[%clk 0:02:45.3]} 12. Be3 {[%clk 0:02:44]} 12...
Nxe3 {[%clk 0:02:45.2]} 13. Qxe3 {[%clk 0:02:43.9]} 13... h5 {[%clk 0:02:39.9]}
14. f4 {[%clk 0:02:40.3]} 14... exf4 {[%clk 0:02:36]} 15. Qxf4 {[%clk
0:02:40.1]} 15... Bh6 {[%clk 0:02:36]} 0-1

[Event "Betsys MČR v online bleskovém šachu 2021"]
[Site "Chess.com"]
[Date "2021.04.17"]
[Round "9"]
[White "jonvon640"]
[Black "DiscoSTU666"]
[Result "0-1"]
[WhiteElo "1682"]
[BlackElo "1882"]
[TimeControl "180+1"]
[EndTime "10:25:02 PDT"]
[Termination "Uživatel DiscoSTU666 zvítězil po vzdání soupeře"]

1. e4 {[%clk 0:03:00.9]} 1... c5 {[%clk 0:02:59.1]} 2. Nf3 {[%clk 0:02:58.6]}
2... d6 {[%clk 0:02:58.6]} 3. d4 {[%clk 0:02:57.6]} 3... cxd4 {[%clk 0:02:58.2]}
4. Nxd4 {[%clk 0:02:58.1]} 4... Nf6 {[%clk 0:02:57.8]} 5. Nc3 {[%clk 0:02:56.3]}
5... a6 {[%clk 0:02:56.5]} 6. Bc4 {[%clk 0:02:55.7]} 6... e6 {[%clk 0:02:54.6]}
7. Bg5 {[%clk 0:02:52.1]} 7... Be7 {[%clk 0:02:47.8]} 8. f3 {[%clk 0:02:47.5]}
8... Qc7 {[%clk 0:02:43.8]} 9. Bb3 {[%clk 0:02:45.5]} 9... b5 {[%clk 0:02:44.1]}
10. O-O {[%clk 0:02:41.8]} 10... Nc6 {[%clk 0:02:43.1]} 11. Nxc6 {[%clk
0:02:34.4]} 11... Qxc6 {[%clk 0:02:41.8]} 12. Bxf6 {[%clk 0:02:30.4]} 12... Bxf6
{[%clk 0:02:36.9]} 13. Qxd6 {[%clk 0:02:24.2]} 13... Qxd6 {[%clk 0:02:33.9]} 0-1

[Event "Betsys MČR v online bleskovém šachu 2021"]
[Site "Chess.com"]
[Date "2021.04.17"]
[Round "9"]
[White "VitaRasik"]
[Black "VojtechPlat"]
[Result "1/2-1/2"]
[WhiteElo "2623"]
[BlackElo "2843"]
[TimeControl "180+1"]
[EndTime "10:25:13 PDT"]
[Termination "Remíza dohodou"]

1. e4 {[%clk 0:03:00.9]} 1... e5 {[%clk 0:02:59.9]} 2. Nf3 {[%clk 0:03:00.9]}
2... Nc6 {[%clk 0:03:00]} 3. Bb5 {[%clk 0:03:00.8]} 3... a6 {[%clk 0:02:59.8]}
4. Ba4 {[%clk 0:02:59.5]} 4... g6 {[%clk 0:02:59.4]} 5. c3 {[%clk 0:02:55.1]}
5... Bg7 {[%clk 0:02:59.3]} 6. d4 {[%clk 0:02:54.1]} 6... exd4 {[%clk
0:02:57.8]} 7. cxd4 {[%clk 0:02:54.1]} 7... Nge7 {[%clk 0:02:57.2]} 8. d5 {[%clk
0:02:52.4]} 8... b5 {[%clk 0:02:56.7]} 9. Bb3 {[%clk 0:02:47.7]} 9... Na5 {[%clk
0:02:56.2]} 10. Bd2 {[%clk 0:02:47.9]} 10... Nxb3 {[%clk 0:02:52.9]} 11. Qxb3
{[%clk 0:02:47.6]} 11... O-O {[%clk 0:02:26.4]} 12. Bc3 {[%clk 0:02:46.5]} 12...
Bxc3+ {[%clk 0:02:25.1]} 13. Nxc3 {[%clk 0:02:43.9]} 13... d6 {[%clk 0:02:22.7]}
14. O-O {[%clk 0:02:40.9]} 1/2-1/2

[Event "Betsys MČR v online bleskovém šachu 2021"]
[Site "Chess.com"]
[Date "2021.04.17"]
[Round "9"]
[White "tomasPardubice"]
[Black "sipos88"]
[Result "1-0"]
[WhiteElo "2090"]
[BlackElo "1872"]
[TimeControl "180+1"]
[EndTime "10:25:20 PDT"]
[Termination "Uživatel tomasPardubice zvítězil po vzdání soupeře"]

1. e4 {[%clk 0:02:54.8]} 1... e5 {[%clk 0:02:56.7]} 2. Nf3 {[%clk 0:02:54.3]}
2... Nc6 {[%clk 0:02:56.5]} 3. Bb5 {[%clk 0:02:53.9]} 3... Bc5 {[%clk
0:02:55.9]} 4. O-O {[%clk 0:02:52.9]} 4... d6 {[%clk 0:02:56]} 5. c3 {[%clk
0:02:52.8]} 5... Bd7 {[%clk 0:02:55.8]} 6. d4 {[%clk 0:02:52.8]} 6... exd4
{[%clk 0:02:56.4]} 7. cxd4 {[%clk 0:02:53.1]} 7... Bb6 {[%clk 0:02:57.2]} 8. Nc3
{[%clk 0:02:52.5]} 8... Nf6 {[%clk 0:02:56.4]} 9. h3 {[%clk 0:02:52.1]} 9... O-O
{[%clk 0:02:56]} 10. Bg5 {[%clk 0:02:51.6]} 10... h6 {[%clk 0:02:55.3]} 11. Bh4
{[%clk 0:02:51.7]} 11... a6 {[%clk 0:02:51.7]} 12. Ba4 {[%clk 0:02:47.7]} 12...
Ba7 {[%clk 0:02:46.7]} 13. Nd5 {[%clk 0:02:46.9]} 13... b5 {[%clk 0:02:42]} 14.
Bc2 {[%clk 0:02:43.5]} 14... Kh8 {[%clk 0:02:33]} 15. Nxf6 {[%clk 0:02:37.9]}
15... gxf6 {[%clk 0:02:32.8]} 16. Qd2 {[%clk 0:02:33.3]} 16... Kh7 {[%clk
0:02:27.9]} 17. e5+ {[%clk 0:02:30.8]} 17... Kg7 {[%clk 0:02:20.8]} 1-0

[Event "Betsys MČR v online bleskovém šachu 2021"]
[Site "Chess.com"]
[Date "2021.04.17"]
[Round "9"]
[White "jsulc"]
[Black "catanist19"]
[Result "1-0"]
[WhiteElo "2053"]
[BlackElo "1743"]
[TimeControl "180+1"]
[EndTime "10:25:46 PDT"]
[Termination "Uživatel jsulc zvítězil po vzdání soupeře"]

1. d4 {[%clk 0:03:00.9]} 1... d5 {[%clk 0:02:58.3]} 2. Nf3 {[%clk 0:03:00.1]}
2... e6 {[%clk 0:02:58]} 3. e3 {[%clk 0:03:00.3]} 3... Nf6 {[%clk 0:02:57]} 4.
Bd3 {[%clk 0:02:57.2]} 4... c5 {[%clk 0:02:56.2]} 5. c3 {[%clk 0:02:56.5]} 5...
Nc6 {[%clk 0:02:51.2]} 6. Nbd2 {[%clk 0:02:56]} 6... Bd6 {[%clk 0:02:49.8]} 7.
O-O {[%clk 0:02:55.9]} 7... O-O {[%clk 0:02:48.2]} 8. dxc5 {[%clk 0:02:56]} 8...
Bxc5 {[%clk 0:02:47.2]} 9. e4 {[%clk 0:02:56.6]} 9... dxe4 {[%clk 0:02:43.7]}
10. Nxe4 {[%clk 0:02:56.2]} 10... Nxe4 {[%clk 0:02:41.8]} 11. Bxe4 {[%clk
0:02:56.3]} 11... Qxd1 {[%clk 0:02:37.6]} 12. Rxd1 {[%clk 0:02:55.4]} 12... Rd8
{[%clk 0:02:36.3]} 13. Bf4 {[%clk 0:02:51.7]} 13... Bd7 {[%clk 0:02:28.3]} 14.
Bc7 {[%clk 0:02:45.5]} 14... Rdc8 {[%clk 0:02:20.8]} 15. Rxd7 {[%clk 0:02:44.8]}
15... Kf8 {[%clk 0:02:05.7]} 16. Bg3 {[%clk 0:02:39.2]} 16... Rd8 {[%clk
0:01:59.2]} 17. Rxb7 {[%clk 0:02:37.7]} 17... Na5 {[%clk 0:01:55.2]} 18. Rb5
{[%clk 0:02:36.1]} 1-0

[Event "Betsys MČR v online bleskovém šachu 2021"]
[Site "Chess.com"]
[Date "2021.04.17"]
[Round "9"]
[White "121pepa"]
[Black "JustFilip05"]
[Result "0-1"]
[WhiteElo "1442"]
[BlackElo "2112"]
[TimeControl "180+1"]
[EndTime "10:25:50 PDT"]
[Termination "Uživatel JustFilip05 zvítězil po vzdání soupeře"]

1. d4 {[%clk 0:03:00.9]} 1... e5 {[%clk 0:03:00.7]} 2. dxe5 {[%clk 0:02:57.4]}
2... Nc6 {[%clk 0:03:00.6]} 3. Nf3 {[%clk 0:02:55.2]} 3... Qe7 {[%clk
0:03:00.5]} 4. b3 {[%clk 0:02:50]} 4... Nxe5 {[%clk 0:02:59.6]} 5. Bb2 {[%clk
0:02:37.7]} 5... Nxf3+ {[%clk 0:02:59]} 6. gxf3 {[%clk 0:02:34.8]} 6... Nf6
{[%clk 0:02:59.3]} 7. e4 {[%clk 0:02:32.8]} 7... c6 {[%clk 0:02:57]} 8. Nd2
{[%clk 0:02:28.4]} 8... d5 {[%clk 0:02:57]} 9. Be2 {[%clk 0:02:25.1]} 9... dxe4
{[%clk 0:02:55.7]} 10. fxe4 {[%clk 0:02:20.3]} 10... Nxe4 {[%clk 0:02:55.8]} 11.
Nxe4 {[%clk 0:02:19.1]} 11... Qxe4 {[%clk 0:02:56.7]} 12. Qd3 {[%clk 0:02:17.9]}
12... Qxh1+ {[%clk 0:02:53]} 13. Kd2 {[%clk 0:02:17.1]} 13... Qd5 {[%clk
0:02:53.2]} 14. Bd4 {[%clk 0:02:13.1]} 14... Bf5 {[%clk 0:02:46.1]} 15. Qe3+
{[%clk 0:02:12.6]} 15... Qe4 {[%clk 0:02:45.8]} 16. Qc3 {[%clk 0:02:02.8]} 16...
O-O-O {[%clk 0:02:45.5]} 17. Re1 {[%clk 0:02:00.7]} 17... Bb4 {[%clk 0:02:40]}
18. Qxb4 {[%clk 0:01:57.1]} 18... Rxd4+ {[%clk 0:02:39.6]} 19. Bd3 {[%clk
0:01:56.4]} 19... Qf4+ {[%clk 0:02:38.9]} 20. Kd1 {[%clk 0:01:53.4]} 20... Rxb4
{[%clk 0:02:39.8]} 21. Bxf5+ {[%clk 0:01:51.6]} 21... Qxf5 {[%clk 0:02:40.7]}
0-1

[Event "Betsys MČR v online bleskovém šachu 2021"]
[Site "Chess.com"]
[Date "2021.04.17"]
[Round "9"]
[White "Newyork6"]
[Black "Maty122"]
[Result "0-1"]
[WhiteElo "331"]
[BlackElo "822"]
[TimeControl "180+1"]
[EndTime "10:25:53 PDT"]
[Termination "Uživatel Maty122 zvítězil matem"]

1. Nf3 {[%clk 0:03:00.9]} 1... d5 {[%clk 0:02:58.5]} 2. g3 {[%clk 0:02:58.7]}
2... Nc6 {[%clk 0:02:58.5]} 3. Bh3 {[%clk 0:02:58]} 3... Bxh3 {[%clk 0:02:56.1]}
4. Ng5 {[%clk 0:02:49.3]} 4... Bf5 {[%clk 0:02:53.4]} 5. O-O {[%clk 0:02:47.2]}
5... e5 {[%clk 0:02:53.5]} 6. Nf3 {[%clk 0:02:41.2]} 6... Nf6 {[%clk 0:02:52.3]}
7. Nxe5 {[%clk 0:02:39.6]} 7... Nxe5 {[%clk 0:02:50.2]} 8. f3 {[%clk 0:02:34.8]}
8... Bc5+ {[%clk 0:02:49.3]} 9. Kg2 {[%clk 0:02:30]} 9... Qd7 {[%clk 0:02:45.8]}
10. e3 {[%clk 0:02:18.4]} 10... Bh3+ {[%clk 0:02:45.1]} 11. Kg1 {[%clk
0:02:14.1]} 11... h5 {[%clk 0:02:37.7]} 12. Rf2 {[%clk 0:02:11.2]} 12... h4
{[%clk 0:02:37.5]} 13. gxh4 {[%clk 0:02:08.5]} 13... Rxh4 {[%clk 0:02:35]} 14.
f4 {[%clk 0:02:04.5]} 14... Qg4+ {[%clk 0:02:26.6]} 15. Rg2 {[%clk 0:01:58]}
15... Qxd1+ {[%clk 0:02:25.5]} 16. Kf2 {[%clk 0:01:56.7]} 16... Ne4# {[%clk
0:02:21.5]} 0-1

[Event "Betsys MČR v online bleskovém šachu 2021"]
[Site "Chess.com"]
[Date "2021.04.17"]
[Round "9"]
[White "PavelNo"]
[Black "DrDANDog"]
[Result "0-1"]
[WhiteElo "1959"]
[BlackElo "1789"]
[TimeControl "180+1"]
[EndTime "10:26:02 PDT"]
[Termination "Uživatel DrDANDog zvítězil matem"]

1. e4 {[%clk 0:03:00.9]} 1... Nf6 {[%clk 0:02:59.9]} 2. e5 {[%clk 0:03:00.2]}
2... Nd5 {[%clk 0:03:00.4]} 3. d4 {[%clk 0:03:00.3]} 3... d6 {[%clk 0:03:00.7]}
4. c4 {[%clk 0:03:00.6]} 4... Nb6 {[%clk 0:03:00.9]} 5. exd6 {[%clk 0:03:01]}
5... exd6 {[%clk 0:03:01.8]} 6. Nc3 {[%clk 0:03:01]} 6... Be7 {[%clk 0:03:02.3]}
7. Bd3 {[%clk 0:02:58.1]} 7... Nc6 {[%clk 0:03:02.5]} 8. Nge2 {[%clk 0:02:54]}
8... O-O {[%clk 0:03:00.9]} 9. O-O {[%clk 0:02:52.7]} 9... Bf6 {[%clk
0:03:01.3]} 10. Be3 {[%clk 0:02:51]} 10... Na5 {[%clk 0:03:00.1]} 11. b3 {[%clk
0:02:49.2]} 11... d5 {[%clk 0:02:49.7]} 12. c5 {[%clk 0:02:48.3]} 12... Nd7
{[%clk 0:02:49.1]} 13. Rc1 {[%clk 0:02:41.3]} 13... b6 {[%clk 0:02:48.4]} 14. b4
{[%clk 0:02:28.5]} 14... Nc4 {[%clk 0:02:46]} 15. Bxc4 {[%clk 0:02:17.3]} 15...
dxc4 {[%clk 0:02:46.9]} 16. Nd5 {[%clk 0:02:06.5]} 16... bxc5 {[%clk 0:02:43.9]}
17. bxc5 {[%clk 0:02:00.2]} 17... Bb7 {[%clk 0:02:40.2]} 18. Nxf6+ {[%clk
0:01:58.2]} 18... Nxf6 {[%clk 0:02:39.4]} 19. Rxc4 {[%clk 0:01:57]} 19... Qd5
{[%clk 0:02:37.2]} 20. Rb4 {[%clk 0:01:37.8]} 20... Qxg2# {[%clk 0:02:36.7]} 0-1

[Event "Betsys MČR v online bleskovém šachu 2021"]
[Site "Chess.com"]
[Date "2021.04.17"]
[Round "9"]
[White "TomSedmihradsky"]
[Black "Hollow_Head"]
[Result "0-1"]
[WhiteElo "1413"]
[BlackElo "1083"]
[TimeControl "180+1"]
[EndTime "10:26:10 PDT"]
[Termination "Uživatel Hollow_Head zvítězil matem"]

1. d4 {[%clk 0:03:00.9]} 1... d5 {[%clk 0:02:59.7]} 2. c4 {[%clk 0:03:00.5]}
2... dxc4 {[%clk 0:02:58.9]} 3. Nc3 {[%clk 0:02:59.8]} 3... Nc6 {[%clk
0:02:59.3]} 4. Nf3 {[%clk 0:02:57.9]} 4... Nf6 {[%clk 0:02:58.9]} 5. e4 {[%clk
0:02:56.8]} 5... e6 {[%clk 0:02:58.3]} 6. a3 {[%clk 0:02:55.1]} 6... Bd7 {[%clk
0:02:56.3]} 7. Bxc4 {[%clk 0:02:54.4]} 7... Bd6 {[%clk 0:02:56]} 8. e5 {[%clk
0:02:53.4]} 8... Be7 {[%clk 0:02:50.4]} 9. exf6 {[%clk 0:02:52.2]} 9... Bxf6
{[%clk 0:02:51.3]} 10. Be3 {[%clk 0:02:47.3]} 10... Qe7 {[%clk 0:02:50.3]} 11.
Ne4 {[%clk 0:02:41.8]} 11... O-O-O {[%clk 0:02:47]} 12. Nxf6 {[%clk 0:02:34.8]}
12... Qxf6 {[%clk 0:02:47.9]} 13. Bg5 {[%clk 0:02:30.2]} 13... Qf5 {[%clk
0:02:37.1]} 14. Bxd8 {[%clk 0:02:23.2]} 14... Rxd8 {[%clk 0:02:38]} 15. O-O
{[%clk 0:02:20.9]} 15... e5 {[%clk 0:02:38]} 16. d5 {[%clk 0:02:14.9]} 16... Nd4
{[%clk 0:02:36.6]} 17. Nxd4 {[%clk 0:02:13.2]} 17... exd4 {[%clk 0:02:37.5]} 18.
Qxd4 {[%clk 0:02:12.2]} 18... c6 {[%clk 0:02:34.9]} 19. d6 {[%clk 0:02:10.7]}
19... c5 {[%clk 0:02:33.3]} 20. Qd5 {[%clk 0:02:02.5]} 20... Qg4 {[%clk
0:02:28.9]} 21. Ba6 {[%clk 0:01:56.7]} 21... Bc6 {[%clk 0:02:27.5]} 22. Qxc5
{[%clk 0:01:46.7]} 22... Qxg2# {[%clk 0:02:26.2]} 0-1

[Event "Betsys MČR v online bleskovém šachu 2021"]
[Site "Chess.com"]
[Date "2021.04.17"]
[Round "9"]
[White "JonasFadrny"]
[Black "vikysachy"]
[Result "0-1"]
[WhiteElo "734"]
[BlackElo "849"]
[TimeControl "180+1"]
[EndTime "10:26:10 PDT"]
[Termination "Uživatel vikysachy zvítězil matem"]

1. d4 {[%clk 0:03:00.9]} 1... d5 {[%clk 0:02:59]} 2. Nc3 {[%clk 0:03:01.2]} 2...
Nc6 {[%clk 0:02:54.3]} 3. Nf3 {[%clk 0:03:01.6]} 3... Nf6 {[%clk 0:02:53.5]} 4.
Bf4 {[%clk 0:03:01.9]} 4... e5 {[%clk 0:02:52.8]} 5. Nb5 {[%clk 0:03:02.3]} 5...
a6 {[%clk 0:02:46.5]} 6. Bxe5 {[%clk 0:03:00.9]} 6... Rb8 {[%clk 0:02:34.2]} 7.
Nxc7+ {[%clk 0:02:59.1]} 7... Kd7 {[%clk 0:02:30.4]} 8. Bg3 {[%clk 0:02:58.3]}
8... Qe8 {[%clk 0:02:18.7]} 9. e3 {[%clk 0:02:57.8]} 9... Bb4+ {[%clk
0:02:17.5]} 10. c3 {[%clk 0:02:56.5]} 10... Ba5 {[%clk 0:02:17]} 11. Bd3 {[%clk
0:02:52.1]} 11... Bxc7 {[%clk 0:02:14.2]} 12. Bxc7 {[%clk 0:02:48.7]} 12... Kxc7
{[%clk 0:02:11.1]} 13. O-O {[%clk 0:02:47.2]} 13... Bg4 {[%clk 0:02:03.5]} 14.
h3 {[%clk 0:02:45.4]} 14... Bxh3 {[%clk 0:02:03.4]} 15. gxh3 {[%clk 0:02:44.6]}
15... Qd7 {[%clk 0:02:01.5]} 16. Ne5 {[%clk 0:02:42.4]} 16... Nxe5 {[%clk
0:01:57.4]} 17. dxe5 {[%clk 0:02:41.4]} 17... Qxh3 {[%clk 0:01:51.7]} 18. exf6
{[%clk 0:02:40.4]} 18... gxf6 {[%clk 0:01:50.6]} 19. Re1 {[%clk 0:02:23.8]}
19... Rhg8+ {[%clk 0:01:49.8]} 20. Qg4 {[%clk 0:02:20.1]} 20... Rxg4# {[%clk
0:01:47.9]} 0-1

[Event "Betsys MČR v online bleskovém šachu 2021"]
[Site "Chess.com"]
[Date "2021.04.17"]
[Round "9"]
[White "fera_v"]
[Black "kalcs"]
[Result "1-0"]
[WhiteElo "2233"]
[BlackElo "2073"]
[TimeControl "180+1"]
[EndTime "10:26:12 PDT"]
[Termination "Uživatel fera_v zvítězil po vzdání soupeře"]

1. e4 {[%clk 0:03:00.9]} 1... e5 {[%clk 0:02:58.8]} 2. Nf3 {[%clk 0:03:00.7]}
2... Nc6 {[%clk 0:02:58.4]} 3. Bb5 {[%clk 0:03:00.6]} 3... a6 {[%clk 0:02:57.8]}
4. Bxc6 {[%clk 0:03:00.6]} 4... dxc6 {[%clk 0:02:57.3]} 5. O-O {[%clk
0:03:01.5]} 5... Bg4 {[%clk 0:02:40.6]} 6. h3 {[%clk 0:03:00.9]} 6... h5 {[%clk
0:02:34.7]} 7. d3 {[%clk 0:03:00.3]} 7... Qf6 {[%clk 0:02:26.3]} 8. Nbd2 {[%clk
0:02:59.6]} 8... O-O-O {[%clk 0:02:17.4]} 9. hxg4 {[%clk 0:02:53.2]} 9... hxg4
{[%clk 0:02:16.6]} 10. Nh2 {[%clk 0:02:53.1]} 10... Qh4 {[%clk 0:02:16.3]} 11.
Qxg4+ {[%clk 0:02:52.1]} 11... Qxg4 {[%clk 0:02:10.4]} 12. Nxg4 {[%clk
0:02:51.5]} 12... f6 {[%clk 0:02:10.1]} 13. Nc4 {[%clk 0:02:47.4]} 13... Ne7
{[%clk 0:01:55.8]} 14. g3 {[%clk 0:02:41.9]} 14... c5 {[%clk 0:01:41.8]} 15. Be3
{[%clk 0:02:41.4]} 15... b6 {[%clk 0:01:40.5]} 16. Kg2 {[%clk 0:02:40.4]} 16...
Nc6 {[%clk 0:01:40.2]} 17. Rh1 {[%clk 0:02:35.7]} 17... Rxh1 {[%clk 0:01:32.8]}
18. Rxh1 {[%clk 0:02:33.8]} 1-0

[Event "Betsys MČR v online bleskovém šachu 2021"]
[Site "Chess.com"]
[Date "2021.04.17"]
[Round "9"]
[White "LightningAttack_2000"]
[Black "JaraLinhart"]
[Result "0-1"]
[WhiteElo "1878"]
[BlackElo "1706"]
[TimeControl "180+1"]
[EndTime "10:26:15 PDT"]
[Termination "Uživatel JaraLinhart zvítězil po vzdání soupeře"]

1. e4 {[%clk 0:03:00.9]} 1... e5 {[%clk 0:02:56.5]} 2. Nf3 {[%clk 0:03:00.8]}
2... Nc6 {[%clk 0:02:55.6]} 3. Bb5 {[%clk 0:03:00.4]} 3... d6 {[%clk 0:02:54.5]}
4. d4 {[%clk 0:03:00]} 4... exd4 {[%clk 0:02:53.9]} 5. Nxd4 {[%clk 0:03:00.4]}
5... Bd7 {[%clk 0:02:54.1]} 6. Nxc6 {[%clk 0:03:00.7]} 6... bxc6 {[%clk
0:02:49.7]} 7. Bd3 {[%clk 0:03:00.9]} 7... Nf6 {[%clk 0:02:48.4]} 8. f4 {[%clk
0:03:00.6]} 8... d5 {[%clk 0:02:36.3]} 9. e5 {[%clk 0:03:00.2]} 9... Ne4 {[%clk
0:01:56.6]} 10. O-O {[%clk 0:02:59.2]} 10... Bc5+ {[%clk 0:01:54.1]} 11. Kh1
{[%clk 0:02:57.2]} 11... Nf2+ {[%clk 0:01:53.4]} 12. Rxf2 {[%clk 0:02:57.6]}
12... Bxf2 {[%clk 0:01:53.7]} 13. Qf3 {[%clk 0:02:57.5]} 13... Bb6 {[%clk
0:01:47.3]} 14. Nc3 {[%clk 0:02:57.2]} 14... Qh4 {[%clk 0:01:42.9]} 15. Be3
{[%clk 0:02:50.1]} 15... Bg4 {[%clk 0:01:33.5]} 0-1